bitfinex-derivatives/quotes_SOLF0:USTF0_20241215
["timestamp","ask_amount","ask_price","bid_price","bid_amount"]
[1734269804552,2.18,219.98,219.93,2.2742]
[1734269804753,2.18,219.98,219.89,1.4809]
[1734269805053,2.18,219.98,219.94,2.2741]
[1734269805749,2.18,219.98,219.95,2.274]
[1734269806550,2.18,219.98,219.89,1.4809]
[1734269806551,2.18,219.98,219.93,2.2741]
[1734269808851,2.18,219.98,219.88,5.56277375]
[1734269809054,1.4487,219.97,219.88,5.56277375]
[1734269809253,2.18,219.96,219.88,5.56277375]
[1734269809757,1.4377,219.95,219.88,5.56277375]
[1734269809956,1.4377,219.95,219.78,2.957]
[1734269810154,1.5269,219.94,219.79,5.04479037]
[1734269810459,2.2747,219.89,219.82,2.2752]
[1734269810754,2.18,219.88,219.78,2.957]
[1734269811058,2.18,219.88,219.83,2.2752]
[1734269811451,2.18,219.88,219.77,5.49736897]
[1734269812056,2.2752,219.83,219.77,5.49736897]
[1734269812253,2.18,219.82,219.77,5.49736897]
[1734269813157,4.4554,219.82,219.77,5.49736897]
[1734269815355,2.18,219.81,219.79,2.2756]
[1734269816157,2.18,219.81,219.8,2.2755]
[1734269816558,2.18,219.82,219.8,2.2755]
[1734269818164,1.4356,219.9,219.81,2.2754]
[1734269818165,2.18,219.83,219.81,2.2754]
[1734269818460,2.18,219.83,219.77,5.49736897]
[1734269818655,2.18,219.83,219.81,2.2754]
[1734269818856,2.18,219.83,219.77,5.49736897]
[1734269819253,2.18,219.83,219.65,44.32986511]
[1734269819459,1.4567,219.82,219.66,10.8827337]
[1734269819659,1.4567,219.82,219.67,8.37867775]
[1734269819962,1.4415,219.81,219.68,5.06817998]
[1734269820162,1.4415,219.81,219.69,5.06817998]
[1734269820364,1.4415,219.81,219.72,2.2764]
[1734269820365,2.2756,219.8,219.72,2.2764]
[1734269820562,1.4415,219.81,219.72,2.2764]
[1734269821464,2.2757,219.79,219.72,2.2764]
[1734269821663,2.18,219.78,219.72,2.2764]
[1734269822164,2.2757,219.79,219.72,2.2764]
[1734269822361,2.18,219.78,219.74,5.50636388]
[1734269822565,2.18,219.77,219.74,5.50636388]
[1734269822760,2.18,219.78,219.76,2.276]
[1734269822961,2.18,219.78,219.74,5.50636388]
[1734269824167,4.4558,219.78,219.74,5.50636388]
[1734269824369,2.18,219.78,219.7,2.2765]
[1734269825468,2.2759,219.77,219.73,5.4241889]
[1734269826065,2.18,219.78,219.73,5.4241889]
[1734269826867,2.18,219.78,219.61,1.4592]
[1734269827170,2.18,219.78,219.7,5.45861606]
[1734269827366,2.18,219.78,219.61,1.4592]
[1734269827567,2.18,219.78,219.62,8.38300193]
[1734269827768,2.18,219.78,219.61,1.4592]
[1734269827968,2.2766,219.7,219.62,5.07399714]
[1734269828167,2.2,219.69,219.61,1.4592]
[1734269828370,2.2,219.68,219.6,2.2775]
[1734269828574,2.2,219.67,219.6,2.2775]
[1734269828870,2.2,219.67,219.55,1.4285]
[1734269829067,2.2,219.67,219.6,2.2775]
[1734269829365,2.2,219.67,219.55,1.4285]
[1734269829568,2.2,219.67,219.63,7.66584923]
[1734269829870,2.2,219.67,219.63,5.38854923]
[1734269833471,2.2768,219.68,219.63,5.38854923]
[1734269833673,2.2,219.67,219.63,5.38854923]
[1734269835678,2.2,219.67,219.62,2.2774]
[1734269836279,4.4769,219.67,219.62,2.2774]
[1734269836775,2.2,219.66,219.62,2.2774]
[1734269836981,2.2,219.66,219.63,5.58951625]
[1734269837980,1.5457,219.69,219.63,5.58951625]
[1734269838280,2.2,219.68,219.63,5.58951625]
[1734269839279,51.99687854,219.76,219.63,5.58951625]
[1734269839784,2.2,219.75,219.63,5.58951625]
[1734269840180,51.99687854,219.76,219.63,5.58951625]
[1734269840485,2.2764,219.72,219.63,5.58951625]
[1734269841180,2.2,219.72,219.63,5.58951625]
[1734269841382,2.2,219.72,219.64,1.4549]
[1734269841884,2.2,219.72,219.64,2.9916]
[1734269842078,2.2,219.72,219.71,2.2765]
[1734269842280,2.2,219.73,219.71,2.2765]
[1734269842887,2.2,219.73,219.69,2.2766]
[1734269843084,2.2,219.73,219.64,4.3992]
[1734269843590,2.2,219.73,219.71,2.2764]
[1734269845180,2.2,219.73,219.64,4.3992]
[1734269845384,2.2,219.73,219.7,2.2766]
[1734269846184,2.2,219.73,219.64,4.3992]
[1734269846388,2.2,219.73,219.65,5.05265865]
[1734269846692,2.2,219.73,219.64,4.3992]
[1734269846989,2.2,219.73,219.65,5.05342466]
[1734269847184,2.2,219.73,219.66,5.05342466]
[1734269847382,2.2,219.73,219.64,4.3992]
[1734269847585,51.99687854,219.76,219.71,2.2764]
[1734269847586,2.2,219.74,219.71,2.2764]
[1734269849286,2.2,219.74,219.64,4.3992]
[1734269849487,2.2,219.74,219.73,2.2763]
[1734269849986,2.2,219.76,219.73,2.2763]
[1734269850991,2.2,219.76,219.74,2.2761]
[1734269851980,1.4544,219.79,219.74,2.2761]
[1734269852185,2.2,219.77,219.74,2.2761]
[1734269854183,1.4544,219.79,219.74,2.2761]
[1734269854385,2.2,219.78,219.75,2.276]
[1734269854991,2.2,219.77,219.75,2.276]
[1734269856083,2.2,219.78,219.75,2.276]
[1734269859291,2.2,219.78,219.67,2.2]
[1734269859495,2.2,219.78,219.68,10.93534964]
[1734269859786,2.2,219.78,219.69,10.93534964]
[1734269859988,2.2,219.78,219.64,1.4549]
[1734269860189,1.4586,219.77,219.65,7.61418245]
[1734269860383,2.2767,219.69,219.64,2.2772]
[1734269860584,2.2,219.68,219.65,5.09702306]
[1734269860887,2.2,219.68,219.63,5.58951625]
[1734269861092,4.4768,219.68,219.64,5.09753822]
[1734269861286,4.4768,219.68,219.63,7.86681625]
[1734269861888,4.4768,219.68,219.64,5.09940039]
[1734269862089,4.4768,219.68,219.63,7.86681625]
[1734269862593,2.2,219.68,219.64,5.10092016]
[1734269862786,2.2,219.68,219.63,7.86681625]
[1734269862984,2.2,219.68,219.64,5.10090959]
[1734269863187,2.2,219.68,219.63,7.86681625]
[1734269863390,2.2,219.68,219.64,5.10186615]
[1734269863591,2.2,219.68,219.63,7.86681625]
[1734269863790,2.2,219.68,219.64,5.10099147]
[1734269863993,2.2,219.68,219.63,7.86681625]
[1734269864192,2.2,219.68,219.64,5.10093462]
[1734269864387,2.2,219.68,219.63,7.86681625]
[1734269864694,2.2,219.68,219.64,5.10248054]
[1734269864890,2.2,219.68,219.63,7.86681625]
[1734269865096,2.2,219.68,219.64,5.10315835]
[1734269865097,4.4768,219.68,219.64,5.10315835]
[1734269865296,4.4768,219.68,219.63,5.58951625]
[1734269865593,4.4768,219.68,219.64,5.10318121]
[1734269865792,4.4768,219.68,219.63,5.58951625]
[1734269865987,4.4768,219.68,219.64,5.10322586]
[1734269866187,4.4768,219.68,219.63,5.58951625]
[1734269866596,2.2769,219.67,219.63,5.58951625]
[1734269866795,2.2769,219.67,219.64,5.10308673]
[1734269866997,2.2769,219.67,219.63,5.58951625]
[1734269868295,2.2,219.68,219.63,5.58951625]
[1734269868496,4.4768,219.68,219.63,5.58951625]
[1734269868701,4.4768,219.68,219.63,7.86681625]
[1734269869000,2.2,219.68,219.63,7.86681625]
[1734269869998,4.4768,219.68,219.63,5.58951625]
[1734269870303,2.2,219.68,219.58,1.4707]
[1734269870497,2.2,219.68,219.59,10.96465428]
[1734269870697,2.2,219.68,219.6,10.96465428]
[1734269871003,2.2,219.68,219.61,5.85935347]
[1734269871198,4.4769,219.68,219.61,7.38289958]
[1734269871397,4.4769,219.68,219.62,5.10539958]
[1734269871596,4.4769,219.68,219.63,5.10539958]
[1734269871800,4.4769,219.68,219.61,2.2775]
[1734269872003,4.4769,219.68,219.62,5.10687146]
[1734269872202,4.4769,219.68,219.63,5.10687146]
[1734269872402,4.4769,219.68,219.61,2.2775]
[1734269872595,2.2,219.68,219.61,5.59202098]
[1734269872799,2.2,219.68,219.63,2.2773]
[1734269873901,2.2,219.68,219.61,5.59202098]
[1734269874103,2.2,219.68,219.64,2.2772]
[1734269874296,2.2,219.68,219.61,5.59202098]
[1734269874605,2.2,219.68,219.62,8.44259793]
[1734269874795,2.2,219.68,219.63,5.10678943]
[1734269874999,2.2,219.68,219.64,2.2771]
[1734269876802,2.2,219.68,219.65,2.2771]
[1734269877600,2.2,219.68,219.61,5.59202098]
[1734269877903,2.2,219.68,219.62,5.10839385]
[1734269878102,2.2767,219.69,219.64,2.2771]
[1734269878302,2.18,219.68,219.64,2.2771]
[1734269880902,4.4568,219.68,219.64,2.2771]
[1734269881804,2.18,219.68,219.61,5.59202098]
[1734269882106,2.18,219.68,219.65,2.2771]
[1734269882608,1.547,219.76,219.61,5.59202098]
[1734269882900,1.547,219.76,219.66,5.1082121]
[1734269882901,2.18,219.75,219.66,5.1082121]
[1734269883106,4.4562,219.75,219.7,2.2765]
[1734269883306,2.18,219.75,219.61,5.59202098]
[1734269883504,2.18,219.75,219.72,2.2764]
[1734269883707,2.18,219.74,219.61,5.59202098]
[1734269883898,2.18,219.74,219.62,10.96424646]
[1734269884203,2.18,219.75,219.72,2.2763]
[1734269890608,56.2458295,219.79,219.73,2.2762]
[1734269890810,2.18,219.78,219.73,2.2762]
[1734269891007,2.18,219.78,219.66,1.523]
[1734269891210,2.18,219.78,219.74,2.2761]
[1734269891406,2.18,219.78,219.72,5.39346878]
[1734269892708,2.18,219.78,219.73,5.10283345]
[1734269892911,2.18,219.78,219.72,5.39346878]
[1734269893108,2.18,219.78,219.73,5.10248707]
[1734269893303,2.18,219.78,219.72,5.39346878]
[1734269893501,2.18,219.78,219.74,2.2761]
[1734269894412,4.4558,219.78,219.73,2.2763]
[1734269896313,2.18,219.78,219.71,2.2764]
[1734269897010,2.276,219.76,219.71,2.2764]
[1734269897309,2.18,219.78,219.66,1.523]
[1734269897510,4.4558,219.78,219.67,10.95409529]
[1734269897714,2.18,219.78,219.68,10.95409529]
[1734269897904,2.18,219.78,219.69,10.95409529]
[1734269898104,2.18,219.78,219.7,8.43101206]
[1734269898403,2.18,219.78,219.71,5.10051576]
[1734269898605,2.18,219.78,219.66,3.0761]
[1734269898606,56.1501295,219.79,219.75,2.2761]
[1734269900311,53.9701295,219.79,219.77,2.2759]
[1734269901207,53.9701295,219.79,219.78,2.2757]
[1734269901610,1.5219,219.84,219.7,2.18]
[1734269901814,2.18,219.84,219.79,2.2756]
[1734269902613,2.18,219.84,219.8,2.2755]
[1734269908815,2.18,219.84,219.77,2.2759]
[1734269909117,2.18,219.84,219.74,5.57998055]
[1734269909317,2.2754,219.81,219.74,7.85618055]
[1734269909519,2.18,219.84,219.74,7.85618055]
[1734269909818,2.2756,219.79,219.74,7.85618055]
[1734269910012,2.18,219.79,219.74,7.85618055]
[1734269911414,2.2758,219.78,219.74,7.85618055]
[1734269911820,2.18,219.79,219.74,7.85618055]
[1734269912026,2.18,219.79,219.75,2.2761]
[1734269915221,2.18,219.79,219.76,2.2759]
[1734269915827,2.18,219.79,219.74,5.57998055]
[1734269918622,2.2756,219.8,219.74,5.57998055]
[1734269920827,2.18,219.81,219.74,5.57998055]
[1734269922427,2.2759,219.77,219.74,5.57998055]
[1734269922730,2.18,219.81,219.67,1.401]
[1734269923029,2.2761,219.75,219.68,9.89799474]
[1734269923233,2.2761,219.75,219.69,10.95218879]
[1734269923430,2.2761,219.75,219.7,10.95218879]
[1734269923738,2.2761,219.75,219.71,5.09966641]
[1734269923933,2.2761,219.75,219.72,10.48802621]
[1734269924233,2.2761,219.75,219.72,5.3883598]
[1734269924535,2.2759,219.77,219.72,5.3883598]
[1734269925330,2.18,219.81,219.72,5.3883598]
[1734269925530,2.2758,219.78,219.73,5.10633942]
[1734269925732,2.2758,219.78,219.72,7.6647598]
[1734269925930,2.2758,219.78,219.73,5.10625932]
[1734269926127,2.2758,219.78,219.72,7.6647598]
[1734269926331,2.2758,219.78,219.73,5.10618136]
[1734269926535,2.18,219.81,219.72,5.3883598]
[1734269926733,3.0446,219.8,219.72,5.3883598]
[1734269927430,3.0446,219.8,219.66,1.523]
[1734269927637,1.4495,219.79,219.67,10.9829515]
[1734269927841,1.4495,219.79,219.68,8.45421992]
[1734269928137,1.4495,219.79,219.69,5.11392402]
[1734269928333,2.276,219.76,219.66,1.523]
[1734269928535,2.18,219.75,219.67,10.98432035]
[1734269928735,2.18,219.74,219.68,8.45529468]
[1734269928937,2.18,219.74,219.69,5.11456979]
[1734269929239,2.18,219.74,219.66,1.523]
[1734269929436,2.18,219.74,219.67,11.35969376]
[1734269929633,2.18,219.74,219.68,8.4533512]
[1734269929836,2.18,219.74,219.69,5.113396]
[1734269930037,2.18,219.74,219.67,5.49126436]
[1734269930235,2.18,219.74,219.68,8.45309439]
[1734269930437,2.18,219.74,219.62,2.2773]
[1734269930741,2.18,219.74,219.63,10.9830455]
[1734269930935,2.18,219.74,219.64,8.45420194]
[1734269931136,2.18,219.74,219.65,5.11387657]
[1734269931333,2.18,219.74,219.63,5.5255708]
[1734269931536,2.2769,219.68,219.64,5.112787]
[1734269931840,2.2769,219.68,219.63,5.5255708]
[1734269931841,2.18,219.67,219.63,5.5255708]
[1734269932037,2.18,219.67,219.64,5.11333013]
[1734269932241,2.18,219.67,219.65,5.11333013]
[1734269932438,2.18,219.67,219.63,5.5255708]
[1734269932640,2.18,219.67,219.64,5.11072611]
[1734269932838,2.18,219.67,219.63,5.5255708]
[1734269934340,2.18,219.67,219.6,1.51]
[1734269934540,2.18,219.67,219.63,5.58900704]
[1734269935840,2.18,219.67,219.64,5.11117654]
[1734269936240,2.18,219.67,219.63,5.58900704]
[1734269937738,6.8569641,219.79,219.64,5.10500759]
[1734269937739,2.18,219.7,219.64,5.10500759]
[1734269937943,2.18,219.7,219.63,5.58900704]
[1734269938144,2.18,219.7,219.64,5.10505252]
[1734269938345,2.18,219.7,219.63,5.58900704]
[1734269938646,4.4567,219.7,219.63,5.58900704]
[1734269939345,4.4567,219.7,219.64,5.10384182]
[1734269939536,4.4567,219.7,219.63,5.58900704]
[1734269940337,2.2767,219.7,219.63,5.58900704]
[1734269940540,2.18,219.69,219.63,5.58900704]
[1734269940940,4.4567,219.69,219.63,5.58900704]
[1734269941447,2.18,219.69,219.56,2.18]
[1734269941746,2.18,219.69,219.57,10.95842337]
[1734269941946,2.18,219.69,219.58,10.95842337]
[1734269942146,2.18,219.69,219.62,5.3937937]
[1734269942642,2.18,219.69,219.63,5.10134153]
[1734269942838,2.18,219.69,219.62,5.3937937]
[1734269943043,2.18,219.69,219.63,5.10149098]
[1734269943244,2.18,219.69,219.62,5.3937937]
[1734269943446,2.18,219.69,219.63,7.37812941]
[1734269943641,2.18,219.7,219.62,5.3937937]
[1734269943852,1.4495,219.79,219.63,5.10202429]
[1734269944051,2.18,219.78,219.68,2.2767]
[1734269944252,2.2761,219.75,219.64,2.52213148]
[1734269944452,2.2761,219.75,219.65,8.43005498]
[1734269944753,2.2761,219.75,219.66,10.95130769]
[1734269944948,2.2761,219.75,219.67,5.09928407]
[1734269945145,2.18,219.75,219.68,5.09928407]
[1734269945353,2.18,219.75,219.63,1.5508]
[1734269945549,2.18,219.75,219.64,10.95026825]
[1734269945744,2.18,219.75,219.69,2.2767]
[1734269950561,4.4561,219.75,219.69,2.2767]
[1734269952959,2.18,219.75,219.71,2.2764]
[1734269954567,2.2757,219.79,219.73,2.2762]
[1734269954764,2.18,219.78,219.64,2.18]
[1734269954959,2.18,219.78,219.65,10.9615441]
[1734269955166,2.18,219.78,219.66,10.9615441]
[1734269955365,2.18,219.78,219.67,10.9615441]
[1734269955561,5.3201,219.8,219.74,2.2761]
[1734269955766,7.5001,219.8,219.74,2.2761]
[1734269957869,4.4555,219.8,219.7,5.47630519]
[1734269958071,4.4555,219.8,219.71,10.95990472]
[1734269958372,2.18,219.8,219.72,8.43651847]
[1734269958570,2.18,219.8,219.76,2.2759]
[1734269958871,2.18,219.8,219.71,1.5427]
[1734269959075,2.18,219.8,219.72,10.95895515]
[1734269959269,2.18,219.8,219.73,5.1028047]
[1734269959573,2.18,219.8,219.74,5.1028047]
[1734269959769,2.18,219.8,219.71,1.5427]
[1734269959975,2.18,219.8,219.76,2.2759]
[1734269960468,2.2757,219.79,219.74,2.2761]
[1734269961475,54.26599606,219.82,219.71,1.5427]
[1734269961667,54.26599606,219.82,219.72,10.955144]
[1734269961870,54.26599606,219.82,219.78,2.2757]
[1734269962973,54.26599606,219.82,219.71,4.4324]
[1734269963171,54.26599606,219.82,219.72,5.85269872]
[1734269963365,54.26599606,219.82,219.73,8.43128349]
[1734269963566,54.26599606,219.82,219.74,5.10029636]
[1734269963770,54.26599606,219.82,219.71,4.4324]
[1734269963964,54.26599606,219.82,219.72,10.9532519]
[1734269964170,54.26599606,219.82,219.73,8.43141373]
[1734269964371,54.26599606,219.82,219.74,5.10025784]
[1734269964575,2.2754,219.81,219.71,4.4324]
[1734269964773,2.2754,219.81,219.72,10.95289948]
[1734269964972,54.26599606,219.82,219.73,8.43113365]
[1734269965167,54.26599606,219.82,219.74,5.10007105]
[1734269965369,54.26599606,219.82,219.71,4.4324]
[1734269965572,54.26599606,219.82,219.72,10.95402972]
[1734269965775,56.54129606,219.82,219.73,8.43195171]
[1734269965972,56.54129606,219.82,219.74,5.10056574]
[1734269966172,56.54129606,219.82,219.71,4.4324]
[1734269966370,2.2755,219.81,219.72,10.95631756]
[1734269966673,2.2755,219.81,219.73,5.10161972]
[1734269966874,2.2755,219.81,219.75,2.276]
[1734269967267,56.54129606,219.82,219.71,4.4324]
[1734269967466,56.54129606,219.82,219.72,10.95676696]
[1734269967770,56.54129606,219.82,219.73,10.95671282]
[1734269967972,56.54129606,219.82,219.74,5.10187611]
[1734269968174,56.54129606,219.82,219.75,5.10187611]
[1734269968371,54.26599606,219.82,219.71,4.4324]
[1734269968575,54.26599606,219.82,219.72,10.95572053]
[1734269968776,54.26599606,219.82,219.73,10.95572053]
[1734269968977,54.26599606,219.82,219.74,5.10139013]
[1734269969180,54.26599606,219.82,219.75,5.10139013]
[1734269969479,2.2757,219.79,219.74,2.2761]
[1734269969679,2.2757,219.79,219.75,5.1010877]
[1734269969874,2.2757,219.79,219.74,2.2761]
[1734269970175,2.2757,219.79,219.75,5.10107147]
[1734269970377,2.2757,219.79,219.74,2.2761]
[1734269970579,2.2757,219.79,219.75,5.10143434]
[1734269970876,2.2757,219.79,219.74,2.2761]
[1734269971077,2.2757,219.79,219.75,5.10186759]
[1734269971279,2.2757,219.79,219.74,2.2761]
[1734269971577,2.2757,219.79,219.75,5.10149964]
[1734269971778,2.2757,219.79,219.74,2.2761]
[1734269971974,2.2757,219.79,219.75,5.10172571]
[1734269972180,2.2757,219.79,219.74,2.2761]
[1734269972571,2.2757,219.79,219.75,5.10128593]
[1734269972776,2.16,219.78,219.7,5.47630519]
[1734269972973,2.16,219.77,219.71,5.10362161]
[1734269973275,2.16,219.76,219.68,2.2767]
[1734269973475,2.16,219.75,219.69,10.96139872]
[1734269973669,2.16,219.75,219.7,5.10412253]
[1734269973873,2.2763,219.73,219.67,2.2769]
[1734269974174,2.2763,219.73,219.68,16.49703889]
[1734269974378,2.2763,219.73,219.69,5.10458893]
[1734269974577,2.2763,219.73,219.7,5.10458893]
[1734269974778,2.2763,219.73,219.68,5.53420131]
[1734269975080,2.2763,219.73,219.69,5.10391048]
[1734269975285,2.2763,219.73,219.7,5.10391048]
[1734269975484,2.2763,219.73,219.68,7.81100131]
[1734269975780,2.2763,219.73,219.69,5.10371878]
[1734269975980,2.2763,219.73,219.68,7.81100131]
[1734269976181,2.2763,219.73,219.69,5.10269209]
[1734269976380,2.2763,219.73,219.68,7.81100131]
[1734269976678,2.2763,219.73,219.69,5.10324882]
[1734269976871,2.16,219.75,219.56,2.16]
[1734269976872,2.2768,219.68,219.56,2.16]
[1734269977177,2.2768,219.68,219.57,10.96795307]
[1734269977481,2.2769,219.67,219.61,2.2774]
[1734269977674,2.2769,219.67,219.62,8.44247418]
[1734269977880,2.2769,219.67,219.63,5.10672421]
[1734269978080,2.2769,219.67,219.61,2.2774]
[1734269978281,2.2769,219.67,219.62,5.10754364]
[1734269978577,2.277,219.66,219.56,3.6592]
[1734269978783,2.277,219.66,219.57,8.44300595]
[1734269978981,2.277,219.66,219.58,3.33597333]
[1734269979181,2.277,219.66,219.59,10.9686679]
[1734269979479,2.277,219.66,219.6,13.2462679]
[1734269979685,2.277,219.66,219.61,8.44300595]
[1734269979983,2.277,219.66,219.62,5.10703262]
[1734269980184,2.277,219.66,219.6,2.2776]
[1734269980485,2.277,219.66,219.61,5.10578107]
[1734269980681,2.277,219.66,219.6,2.2776]
[1734269980882,2.9485,219.68,219.61,5.10585821]
[1734269981083,5.2254,219.68,219.6,2.2776]
[1734269981278,2.9485,219.68,219.61,5.10586968]
[1734269981484,2.9485,219.68,219.6,2.2776]
[1734269981690,2.9485,219.68,219.61,5.10574424]
[1734269981877,2.9485,219.68,219.61,5.43122459]
[1734269982484,2.9485,219.68,219.64,2.2772]
[1734269982683,5.1285,219.68,219.61,5.43122459]
[1734269982986,5.1285,219.68,219.62,5.10514088]
[1734269983385,5.1285,219.68,219.61,5.43122459]
[1734269983587,7.4054,219.68,219.61,7.70872459]
[1734269983890,7.4054,219.68,219.61,5.43122459]
[1734269984485,7.4054,219.68,219.62,2.2774]
[1734269987083,2.18,219.67,219.63,2.2773]
[1734269988286,4.4569,219.67,219.61,7.70862459]
[1734269988484,4.4569,219.67,219.61,5.43122459]
[1734269989392,4.4569,219.67,219.63,2.2773]
[1734269989393,2.18,219.67,219.63,2.2773]
[1734269990294,2.16,219.69,219.61,5.43122459]
[1734269990491,2.16,219.69,219.62,8.43622643]
[1734269991596,2.16,219.7,219.61,5.43122459]
[1734269991787,2.16,219.7,219.59,2.2776]
[1734269991991,1.4581,219.69,219.59,2.2776]
[1734269992395,1.4581,219.69,219.59,7.68336931]
[1734269992396,2.9353,219.68,219.59,7.68336931]
[1734269992795,2.2773,219.64,219.59,7.68336931]
[1734269993091,2.16,219.63,219.56,2.278]
[1734269993296,2.16,219.62,219.53,0.17062]
[1734269993493,2.9353,219.68,219.53,0.17062]
[1734269993494,2.16,219.61,219.53,0.17062]
[1734269993695,6.5534,219.6,219.53,0.17062]
[1734269993991,2.16,219.59,219.53,0.17062]
[1734269994598,2.2779,219.58,219.53,0.17062]
[1734269994795,2.16,219.59,219.53,0.17062]
[1734269995300,2.2779,219.57,219.53,0.17062]
[1734269996097,2.16,219.59,219.53,0.17062]
[1734269997394,2.16,219.59,219.54,2.2782]
[1734269997795,2.16,219.59,219.53,0.17062]
[1734269999200,2.16,219.59,219.55,2.2781]
[1734269999400,2.16,219.59,219.53,0.17062]
[1734270000494,2.2782,219.54,219.53,0.17062]
[1734270000704,2.16,219.54,219.53,0.17062]
[1734270001104,2.16,219.54,219.32,6.30905303]
[1734270001303,2.16,219.54,219.4,13.08982383]
[1734270001494,2.16,219.54,219.41,8.41550597]
[1734270001794,2.16,219.54,219.42,5.09008403]
[1734270001996,2.16,219.54,219.4,2.16]
[1734270002202,2.16,219.54,219.41,5.08742011]
[1734270002398,2.2787,219.5,219.44,2.2792]
[1734270002603,2.16,219.49,219.38,2.16]
[1734270002803,2.16,219.49,219.4,8.40646384]
[1734270003102,2.16,219.49,219.47,2.2789]
[1734270003299,2.16,219.49,219.43,5.49895978]
[1734270004097,2.16,219.49,219.48,2.2789]
[1734270005902,2.16,219.52,219.49,2.2787]
[1734270006107,2.16,219.53,219.49,2.2787]
[1734270007307,0.558,219.53,219.47,2.2789]
[1734270008211,2.8364,219.53,219.48,2.2789]
[1734270009007,0.558,219.53,219.48,2.2789]
[1734270009209,2.16,219.54,219.43,5.49895978]
[1734270009505,2.16,219.54,219.44,6.53678223]
[1734270009705,2.9353,219.6,219.45,2.16]
[1734270009903,2.16,219.59,219.46,8.39285046]
[1734270010105,2.16,219.59,219.47,8.39266642]
[1734270010307,2.16,219.59,219.48,8.39266642]
[1734270010509,2.16,219.59,219.49,8.39330033]
[1734270010811,2.16,219.62,219.57,2.2778]
[1734270011610,2.16,219.62,219.51,2.16]
[1734270011909,2.16,219.62,219.52,5.07876257]
[1734270012107,2.16,219.62,219.57,2.2778]
[1734270012407,2.16,219.62,219.51,2.16]
[1734270012714,2.16,219.62,219.52,6.49103277]
[1734270012910,2.277,219.66,219.59,2.2776]
[1734270013407,2.2768,219.68,219.62,2.2774]
[1734270013614,2.16,219.67,219.62,2.2774]
[1734270014304,2.2768,219.68,219.62,2.2774]
[1734270014610,2.16,219.67,219.62,2.2774]
[1734270015608,4.4369,219.67,219.62,2.2774]
[1734270017513,2.16,219.67,219.63,2.2773]
[1734270019515,4.4369,219.67,219.61,2.2774]
[1734270019819,2.16,219.67,219.53,2.9185]
[1734270020109,2.16,219.67,219.54,13.10417558]
[1734270020312,2.16,219.67,219.55,10.94417558]
[1734270020512,2.2771,219.65,219.6,2.2776]
[1734270021109,2.2772,219.64,219.58,2.2778]
[1734270021313,2.16,219.67,219.56,5.59852114]
[1734270021505,3.0594,219.66,219.57,5.10234434]
[1734270021707,2.2773,219.63,219.56,7.87642114]
[1734270021910,2.16,219.62,219.57,5.10239451]
[1734270022111,2.16,219.62,219.56,5.59852114]
[1734270022311,2.16,219.62,219.59,2.2777]
[1734270024216,2.16,219.67,219.56,7.75852114]
[1734270024411,2.16,219.67,219.57,8.44006654]
[1734270024613,2.16,219.67,219.58,5.10518201]
[1734270024818,4.4369,219.67,219.56,7.75852114]
[1734270025032,4.4369,219.67,219.57,8.44004892]
[1734270025222,4.4369,219.67,219.58,5.10516521]
[1734270025531,2.16,219.67,219.57,2.16]
[1734270025721,2.16,219.67,219.58,5.10579893]
[1734270025928,2.16,219.67,219.59,5.10561199]
[1734270026230,4.4369,219.67,219.57,2.16]
[1734270026529,4.4369,219.67,219.58,5.10619504]
[1734270026829,4.4369,219.67,219.57,2.16]
[1734270027024,4.4369,219.67,219.58,5.10607279]